[Event "Late-Titled-Tuesday-Blitz-February-13-2024"]
[Site "Chess.com"]
[Date "2024.02.13"]
[Round "1"]
[White "Slovak_fighter2000"]
[Black "Shankland"]
[Result "0-1"]
[WhiteElo "2499"]
[BlackElo "2948"]
[TimeControl "180+1"]
[EndTime "14:08:04 PST"]
[Termination "Shankland won by resignation"]

1. d4 {[%clk 0:03:00]} 1... Nf6 {[%clk 0:02:59.3]} 2. Nf3 {[%clk 0:02:59.3]}
2... e6 {[%clk 0:02:59.2]} 3. c4 {[%clk 0:02:59.3]} 3... b6 {[%clk 0:02:58.1]}
4. a3 {[%clk 0:02:59]} 4... c5 {[%clk 0:02:56.6]} 5. d5 {[%clk 0:02:56.6]} 5...
Ba6 {[%clk 0:02:56.6]} 6. e3 {[%clk 0:02:45.1]} 6... exd5 {[%clk 0:02:55.2]} 7.
cxd5 {[%clk 0:02:46]} 7... Bxf1 {[%clk 0:02:55.1]} 8. Kxf1 {[%clk 0:02:46.8]}
8... d6 {[%clk 0:02:54.6]} 9. Nc3 {[%clk 0:02:45.2]} 9... g6 {[%clk 0:02:54.8]}
10. g3 {[%clk 0:02:41.2]} 10... Bg7 {[%clk 0:02:54.7]} 11. Kg1 {[%clk
0:02:41.8]} 11... O-O {[%clk 0:02:54.6]} 12. Kg2 {[%clk 0:02:41.4]} 12... Re8
{[%clk 0:02:48]} 13. Qd3 {[%clk 0:02:34.6]} 13... a6 {[%clk 0:02:43.9]} 14. a4
{[%clk 0:02:33.3]} 14... Nbd7 {[%clk 0:02:44]} 15. e4 {[%clk 0:02:31.7]} 15...
Ng4 {[%clk 0:02:40.2]} 16. Bf4 {[%clk 0:02:29.1]} 16... Nge5 {[%clk 0:02:38.6]}
17. Nxe5 {[%clk 0:02:29.2]} 17... Nxe5 {[%clk 0:02:38.2]} 18. Bxe5 {[%clk
0:02:26.7]} 18... Bxe5 {[%clk 0:02:36.6]} 19. Rhe1 {[%clk 0:02:25.3]} 19... Qd7
{[%clk 0:02:32.8]} 20. h3 {[%clk 0:02:21.8]} 20... Re7 {[%clk 0:02:25.8]} 21.
Ra3 {[%clk 0:02:12]} 21... h5 {[%clk 0:02:09.2]} 22. f4 {[%clk 0:02:05.7]} 22...
Bd4 {[%clk 0:02:08.5]} 23. Rb3 {[%clk 0:01:41.1]} 23... Qc7 {[%clk 0:02:07.7]}
24. Qc4 {[%clk 0:01:37.9]} 24... Kg7 {[%clk 0:02:03.7]} 25. Nb1 {[%clk 0:01:22]}
25... f5 {[%clk 0:01:37.8]} 26. Nd2 {[%clk 0:01:21.6]} 26... fxe4 {[%clk
0:01:38.1]} 27. Rxe4 {[%clk 0:01:19.3]} 27... Rxe4 {[%clk 0:01:37.5]} 28. Nxe4
{[%clk 0:01:20.2]} 28... Qe7 {[%clk 0:01:30.6]} 29. Ng5 {[%clk 0:01:16.5]} 29...
Qe1 {[%clk 0:01:30.4]} 30. Ne6+ {[%clk 0:01:16.4]} 30... Kh7 {[%clk 0:01:27]}
31. Nxd4 {[%clk 0:01:14.1]} 31... cxd4 {[%clk 0:01:26.5]} 32. Qxd4 {[%clk
0:01:10.4]} 32... Re8 {[%clk 0:01:26.2]} 33. Rf3 {[%clk 0:01:03.7]} 33... Re2+
{[%clk 0:01:08.7]} 34. Rf2 {[%clk 0:01:03.9]} 34... Rxf2+ {[%clk 0:01:09.3]} 35.
Qxf2 {[%clk 0:01:04.8]} 35... Qe4+ {[%clk 0:01:09.8]} 36. Qf3 {[%clk 0:01:02.8]}
36... Qxa4 {[%clk 0:01:09.6]} 37. Qe2 {[%clk 0:00:58.1]} 37... Kh6 {[%clk
0:01:00.2]} 38. Qe7 {[%clk 0:00:40.2]} 38... Qc2+ {[%clk 0:00:58.5]} 39. Kg1
{[%clk 0:00:37.2]} 39... Qd1+ {[%clk 0:00:58.3]} 40. Kf2 {[%clk 0:00:33.6]}
40... Qd2+ {[%clk 0:00:56.9]} 41. Kf1 {[%clk 0:00:32.7]} 41... Qxd5 {[%clk
0:00:54.1]} 42. Qf8+ {[%clk 0:00:29.1]} 42... Kh7 {[%clk 0:00:54.2]} 43. Qe7+
{[%clk 0:00:29]} 43... Kg8 {[%clk 0:00:54.7]} 44. Qd8+ {[%clk 0:00:27.4]} 44...
Kg7 {[%clk 0:00:54.7]} 45. Qe7+ {[%clk 0:00:26.8]} 45... Qf7 {[%clk 0:00:54.6]}
46. Qxd6 {[%clk 0:00:26.8]} 46... Qc4+ {[%clk 0:00:54.6]} 47. Kf2 {[%clk
0:00:25]} 47... Qc2+ {[%clk 0:00:54]} 48. Kf3 {[%clk 0:00:23.6]} 48... Qb3+
{[%clk 0:00:49.6]} 49. Ke4 {[%clk 0:00:19.5]} 49... Qxb2 {[%clk 0:00:49.6]} 50.
Qe7+ {[%clk 0:00:16.8]} 50... Kg8 {[%clk 0:00:49.8]} 51. Qe8+ {[%clk 0:00:16.9]}
51... Kh7 {[%clk 0:00:50]} 52. Qd7+ {[%clk 0:00:11.6]} 52... Qg7 {[%clk
0:00:49.6]} 53. Qd6 {[%clk 0:00:09.3]} 53... Qb7+ {[%clk 0:00:49.1]} 54. Ke5
{[%clk 0:00:08.6]} 54... b5 {[%clk 0:00:44.9]} 55. Qb4 {[%clk 0:00:07.1]} 55...
Kg7 {[%clk 0:00:43.6]} 56. g4 {[%clk 0:00:07.6]} 56... hxg4 {[%clk 0:00:42.1]}
57. hxg4 {[%clk 0:00:08.5]} 57... Kf7 {[%clk 0:00:42.6]} 58. f5 {[%clk
0:00:08.4]} 58... gxf5 {[%clk 0:00:39.6]} 59. gxf5 {[%clk 0:00:09.3]} 59... Qe7+
{[%clk 0:00:39.8]} 0-1

[Event "Late-Titled-Tuesday-Blitz-February-13-2024"]
[Site "Chess.com"]
[Date "2024.02.13"]
[Round "1"]
[White "Balla_Tamas"]
[Black "MyDream003"]
[Result "0-1"]
[WhiteElo "2391"]
[BlackElo "2740"]
[TimeControl "180+1"]
[EndTime "14:08:16 PST"]
[Termination "MyDream003 won by checkmate"]

1. e4 {[%clk 0:03:00.5]} 1... c6 {[%clk 0:02:56.1]} 2. d4 {[%clk 0:02:59.9]}
2... d5 {[%clk 0:02:55.8]} 3. e5 {[%clk 0:03:00.6]} 3... Bf5 {[%clk 0:02:55.8]}
4. h4 {[%clk 0:02:59.2]} 4... h5 {[%clk 0:02:53.4]} 5. Bd3 {[%clk 0:02:55.3]}
5... Bxd3 {[%clk 0:02:53.4]} 6. Qxd3 {[%clk 0:02:56.2]} 6... e6 {[%clk
0:02:53.8]} 7. Bg5 {[%clk 0:02:55.9]} 7... Qa5+ {[%clk 0:02:51.2]} 8. Nd2 {[%clk
0:02:56.5]} 8... Qb5 {[%clk 0:02:46.3]} 9. Qxb5 {[%clk 0:02:15.6]} 9... cxb5
{[%clk 0:02:47.2]} 10. Ne2 {[%clk 0:01:53.8]} 10... Nc6 {[%clk 0:02:38.1]} 11.
O-O {[%clk 0:01:53.1]} 11... Nge7 {[%clk 0:02:24]} 12. c3 {[%clk 0:01:48]} 12...
Nf5 {[%clk 0:02:17.1]} 13. Nf3 {[%clk 0:01:07.5]} 13... Kd7 {[%clk 0:02:01.6]}
14. g3 {[%clk 0:01:07.5]} 14... b4 {[%clk 0:01:46.3]} 15. Rfc1 {[%clk
0:01:04.7]} 15... bxc3 {[%clk 0:01:33.6]} 16. bxc3 {[%clk 0:01:03.6]} 16... Na5
{[%clk 0:01:17.4]} 17. Nd2 {[%clk 0:00:57.2]} 17... Ba3 {[%clk 0:01:11.7]} 18.
Rc2 {[%clk 0:00:54.2]} 18... Rhc8 {[%clk 0:01:11]} 19. Rb1 {[%clk 0:00:52.8]}
19... a6 {[%clk 0:00:59.6]} 20. Nf4 {[%clk 0:00:37]} 20... g6 {[%clk 0:00:59.2]}
21. Nd3 {[%clk 0:00:35.3]} 21... Nxd4 {[%clk 0:00:49.3]} 22. cxd4 {[%clk
0:00:19.1]} 22... Rxc2 {[%clk 0:00:50.2]} 23. Nb3 {[%clk 0:00:19.1]} 23... b6
{[%clk 0:00:27.4]} 24. Nxa5 {[%clk 0:00:18]} 24... bxa5 {[%clk 0:00:28.3]} 25.
Rb7+ {[%clk 0:00:18.1]} 25... Rc7 {[%clk 0:00:27.6]} 26. Rb6 {[%clk 0:00:17.3]}
26... Raa7 {[%clk 0:00:23.5]} 27. Rb8 {[%clk 0:00:10.1]} 27... Rc8 {[%clk
0:00:23.2]} 28. Rb6 {[%clk 0:00:10.3]} 28... Bf8 {[%clk 0:00:19.6]} 29. Kg2
{[%clk 0:00:08]} 29... Kc7 {[%clk 0:00:19.2]} 30. Rb3 {[%clk 0:00:06.7]} 30...
Rb7 {[%clk 0:00:19.4]} 31. Rc3+ {[%clk 0:00:07]} 31... Kd7 {[%clk 0:00:19.5]}
32. Nc5+ {[%clk 0:00:05.4]} 32... Bxc5 {[%clk 0:00:18.9]} 33. dxc5 {[%clk
0:00:06.3]} 33... Rb4 {[%clk 0:00:16.7]} 34. Rf3 {[%clk 0:00:06.3]} 34... Ke8
{[%clk 0:00:16.4]} 35. Rc3 {[%clk 0:00:04.3]} 35... Rc4 {[%clk 0:00:16.4]} 36.
Ra3 {[%clk 0:00:04.9]} 36... R4xc5 {[%clk 0:00:16.5]} 37. Be3 {[%clk 0:00:05.6]}
37... Rb5 {[%clk 0:00:16.8]} 38. Rd3 {[%clk 0:00:05.6]} 38... Kd7 {[%clk
0:00:17.1]} 39. g4 {[%clk 0:00:06.2]} 39... Rc4 {[%clk 0:00:16.5]} 40. gxh5
{[%clk 0:00:06.3]} 40... gxh5 {[%clk 0:00:17.4]} 41. Kh3 {[%clk 0:00:06.8]}
41... Re4 {[%clk 0:00:16.1]} 42. Bg5 {[%clk 0:00:07]} 42... Rxe5 {[%clk
0:00:15.8]} 43. Rf3 {[%clk 0:00:07.7]} 43... Rf5 {[%clk 0:00:16]} 44. Rc3 {[%clk
0:00:07.6]} 44... a4 {[%clk 0:00:14.7]} 45. Ra3 {[%clk 0:00:06.1]} 45... Rb4
{[%clk 0:00:14.8]} 46. Rc3 {[%clk 0:00:06.4]} 46... Rc4 {[%clk 0:00:15.2]} 47.
Rd3 {[%clk 0:00:06.3]} 47... a5 {[%clk 0:00:15.7]} 48. a3 {[%clk 0:00:06.6]}
48... f6 {[%clk 0:00:15.9]} 49. Be3 {[%clk 0:00:06.6]} 49... Kc6 {[%clk
0:00:15.1]} 50. Rd2 {[%clk 0:00:06.8]} 50... e5 {[%clk 0:00:15.3]} 51. Rb2
{[%clk 0:00:06.7]} 51... d4 {[%clk 0:00:15.6]} 52. Bd2 {[%clk 0:00:07.3]} 52...
Rxf2 {[%clk 0:00:15.3]} 53. Ra2 {[%clk 0:00:04.6]} 53... e4 {[%clk 0:00:14.6]}
54. Rb2 {[%clk 0:00:04.1]} 54... e3 {[%clk 0:00:14.9]} 55. Rb8 {[%clk 0:00:05]}
55... exd2 {[%clk 0:00:14.1]} 56. Kg3 {[%clk 0:00:05.9]} 56... Rf1 {[%clk
0:00:13.7]} 57. Kh2 {[%clk 0:00:03.9]} 57... d1=Q {[%clk 0:00:13.3]} 58. Rc8+
{[%clk 0:00:04.4]} 58... Kb7 {[%clk 0:00:13]} 59. Rxc4 {[%clk 0:00:03.4]} 59...
Qe2+ {[%clk 0:00:13.2]} 60. Kg3 {[%clk 0:00:04]} 60... Rf3# {[%clk 0:00:14.1]}
0-1

[Event "Late-Titled-Tuesday-Blitz-February-13-2024"]
[Site "Chess.com"]
[Date "2024.02.13"]
[Round "1"]
[White "Teidi96"]
[Black "ArtemDyachuk"]
[Result "0-1"]
[WhiteElo "2262"]
[BlackElo "2611"]
[TimeControl "180+1"]
[EndTime "14:08:16 PST"]
[Termination "ArtemDyachuk won by resignation"]

1. e4 {[%clk 0:03:00.9]} 1... c5 {[%clk 0:02:54.9]} 2. Nf3 {[%clk 0:03:00.7]}
2... d6 {[%clk 0:02:54.6]} 3. Bb5+ {[%clk 0:02:59.1]} 3... Nd7 {[%clk
0:02:53.7]} 4. d4 {[%clk 0:02:59.2]} 4... cxd4 {[%clk 0:02:52.9]} 5. Qxd4 {[%clk
0:03:00.1]} 5... a6 {[%clk 0:02:51.9]} 6. Bxd7+ {[%clk 0:03:00]} 6... Bxd7
{[%clk 0:02:51.6]} 7. c4 {[%clk 0:02:57.3]} 7... Nf6 {[%clk 0:02:51.7]} 8. Nc3
{[%clk 0:02:56.9]} 8... g6 {[%clk 0:02:51.7]} 9. O-O {[%clk 0:02:53.6]} 9... Bg7
{[%clk 0:02:51.7]} 10. Rd1 {[%clk 0:02:50.2]} 10... O-O {[%clk 0:02:50.6]} 11.
Qd3 {[%clk 0:02:48.5]} 11... Rc8 {[%clk 0:02:49.5]} 12. Rb1 {[%clk 0:02:44.4]}
12... Bg4 {[%clk 0:02:44]} 13. h3 {[%clk 0:02:37.1]} 13... Bxf3 {[%clk
0:02:43.5]} 14. gxf3 {[%clk 0:02:36.7]} 14... Nd7 {[%clk 0:02:40.5]} 15. b3
{[%clk 0:02:31.2]} 15... Ne5 {[%clk 0:02:35.1]} 16. Qe3 {[%clk 0:02:31.4]} 16...
Qd7 {[%clk 0:02:34.6]} 17. f4 {[%clk 0:02:26.7]} 17... Nc6 {[%clk 0:02:32.1]}
18. Nd5 {[%clk 0:02:22]} 18... Rcd8 {[%clk 0:02:02.9]} 19. Bb2 {[%clk
0:02:19.1]} 19... f5 {[%clk 0:01:28.7]} 20. Bxg7 {[%clk 0:02:15.2]} 20... Kxg7
{[%clk 0:01:29.6]} 21. e5 {[%clk 0:02:11.8]} 21... e6 {[%clk 0:01:01.5]} 22. Nb6
{[%clk 0:01:58.2]} 22... Qe7 {[%clk 0:00:56.9]} 23. exd6 {[%clk 0:01:36.1]}
23... Rxd6 {[%clk 0:00:57.8]} 24. Rxd6 {[%clk 0:01:35.3]} 24... Qxd6 {[%clk
0:00:56.2]} 25. c5 {[%clk 0:01:36]} 25... Qd4 {[%clk 0:00:36.9]} 26. Qxe6 {[%clk
0:01:16.2]} 26... Qxf4 {[%clk 0:00:35.2]} 27. Rd1 {[%clk 0:01:09.4]} 27... Ne5
{[%clk 0:00:21.5]} 28. Nd7 {[%clk 0:00:29.8]} 28... Nf3+ {[%clk 0:00:15.1]} 29.
Kg2 {[%clk 0:00:28.6]} 29... Rf7 {[%clk 0:00:13.6]} 30. Qe3 {[%clk 0:00:15.8]}
30... Nh4+ {[%clk 0:00:10.5]} 31. Kf1 {[%clk 0:00:15.5]} 31... Qh2 {[%clk
0:00:10]} 32. Qe5+ {[%clk 0:00:14.3]} 32... Qxe5 {[%clk 0:00:10.3]} 33. Nxe5
{[%clk 0:00:15.2]} 33... Re7 {[%clk 0:00:10.7]} 34. Rd7 {[%clk 0:00:14.3]} 34...
Kf6 {[%clk 0:00:11.1]} 35. Rxe7 {[%clk 0:00:13.5]} 35... Kxe7 {[%clk 0:00:12]}
36. f4 {[%clk 0:00:10.6]} 36... Ke6 {[%clk 0:00:11]} 37. Kf2 {[%clk 0:00:10]}
37... g5 {[%clk 0:00:10.2]} 38. Nd3 {[%clk 0:00:09.8]} 38... gxf4 {[%clk
0:00:06.5]} 39. Nxf4+ {[%clk 0:00:10]} 39... Ke5 {[%clk 0:00:07.1]} 40. Kg3
{[%clk 0:00:08.9]} 40... Ng6 {[%clk 0:00:06.3]} 41. Ne2 {[%clk 0:00:02.6]} 41...
Ke4 {[%clk 0:00:05.5]} 42. Nc3+ {[%clk 0:00:02.2]} 42... Kd4 {[%clk 0:00:05.7]}
43. Na4 {[%clk 0:00:02.7]} 43... Ke3 {[%clk 0:00:05.9]} 44. h4 {[%clk
0:00:02.9]} 44... f4+ {[%clk 0:00:06]} 45. Kg2 {[%clk 0:00:03.4]} 45... Nxh4+
{[%clk 0:00:05.6]} 46. Kf1 {[%clk 0:00:03.3]} 46... Nf5 {[%clk 0:00:06.1]} 47.
Nc3 {[%clk 0:00:02.7]} 47... Kd4 {[%clk 0:00:04.5]} 48. Ne2+ {[%clk 0:00:02.4]}
48... Ke5 {[%clk 0:00:04.5]} 49. Kf2 {[%clk 0:00:02.1]} 49... h5 {[%clk
0:00:04.7]} 50. Kf3 {[%clk 0:00:02.2]} 50... Nd4+ {[%clk 0:00:03.3]} 51. Nxd4
{[%clk 0:00:02.8]} 51... Kxd4 {[%clk 0:00:04.2]} 52. c6 {[%clk 0:00:03.4]} 52...
bxc6 {[%clk 0:00:03.9]} 53. Kxf4 {[%clk 0:00:04]} 53... Kc3 {[%clk 0:00:04.2]}
54. Kg5 {[%clk 0:00:03.5]} 54... Kb2 {[%clk 0:00:04.7]} 55. Kxh5 {[%clk
0:00:03.9]} 55... Kxa2 {[%clk 0:00:05.2]} 56. Kg5 {[%clk 0:00:04.6]} 56... Kxb3
{[%clk 0:00:05.5]} 0-1

[Event "Late-Titled-Tuesday-Blitz-February-13-2024"]
[Site "Chess.com"]
[Date "2024.02.13"]
[Round "1"]
[White "MoreChessJulia"]
[Black "xakevicius91"]
[Result "0-1"]
[WhiteElo "2070"]
[BlackElo "2543"]
[TimeControl "180+1"]
[EndTime "14:08:21 PST"]
[Termination "xakevicius91 won by resignation"]

1. d4 {[%clk 0:03:00.9]} 1... Nf6 {[%clk 0:02:58.8]} 2. c4 {[%clk 0:02:59.5]}
2... e6 {[%clk 0:02:58.8]} 3. Nf3 {[%clk 0:02:58.6]} 3... b6 {[%clk 0:02:53.3]}
4. g3 {[%clk 0:02:57.6]} 4... Bb7 {[%clk 0:02:47.9]} 5. Bg2 {[%clk 0:02:56.6]}
5... Be7 {[%clk 0:02:47.7]} 6. O-O {[%clk 0:02:55.1]} 6... O-O {[%clk
0:02:47.8]} 7. b3 {[%clk 0:02:54.5]} 7... d6 {[%clk 0:02:47.2]} 8. Bb2 {[%clk
0:02:53.1]} 8... Nbd7 {[%clk 0:02:46.9]} 9. Nbd2 {[%clk 0:02:52.4]} 9... Ne4
{[%clk 0:02:46.5]} 10. Nxe4 {[%clk 0:02:51.3]} 10... Bxe4 {[%clk 0:02:46.2]} 11.
d5 {[%clk 0:02:39.4]} 11... e5 {[%clk 0:02:43.5]} 12. Ne1 {[%clk 0:02:34.4]}
12... Bxg2 {[%clk 0:02:43.3]} 13. Nxg2 {[%clk 0:02:33.9]} 13... f5 {[%clk
0:02:43.4]} 14. f4 {[%clk 0:02:33]} 14... e4 {[%clk 0:02:27.3]} 15. Ne3 {[%clk
0:02:31.5]} 15... g6 {[%clk 0:02:27.7]} 16. g4 {[%clk 0:02:24.7]} 16... Bf6
{[%clk 0:02:27.1]} 17. Qd2 {[%clk 0:02:20.1]} 17... Bxb2 {[%clk 0:02:01.3]} 18.
Qxb2 {[%clk 0:02:18.7]} 18... Qf6 {[%clk 0:01:39.2]} 19. Qxf6 {[%clk 0:02:17]}
19... Rxf6 {[%clk 0:01:40.1]} 20. g5 {[%clk 0:02:14.8]} 20... Rf7 {[%clk
0:01:39.1]} 21. b4 {[%clk 0:02:12.6]} 21... h6 {[%clk 0:01:39.4]} 22. h4 {[%clk
0:02:11.7]} 22... hxg5 {[%clk 0:01:40]} 23. hxg5 {[%clk 0:02:11.1]} 23... Rh7
{[%clk 0:01:40.1]} 24. Kg2 {[%clk 0:02:11.3]} 24... a5 {[%clk 0:01:35.3]} 25. a3
{[%clk 0:02:10.6]} 25... Kg7 {[%clk 0:01:32.4]} 26. Rh1 {[%clk 0:01:57.8]} 26...
Rxh1 {[%clk 0:01:31.1]} 27. Rxh1 {[%clk 0:01:55.6]} 27... axb4 {[%clk
0:01:31.3]} 28. axb4 {[%clk 0:01:55.8]} 28... Ra2 {[%clk 0:01:27.7]} 29. Kf2
{[%clk 0:01:54.9]} 29... Nb8 {[%clk 0:01:19.5]} 30. Rb1 {[%clk 0:01:48.6]} 30...
Na6 {[%clk 0:01:17.7]} 31. b5 {[%clk 0:01:44.9]} 31... Nc5 {[%clk 0:01:16.5]}
32. Rh1 {[%clk 0:01:35.2]} 32... Nd3+ {[%clk 0:01:14.6]} 33. Kg3 {[%clk
0:01:34]} 33... Rxe2 {[%clk 0:01:14.6]} 34. Ng2 {[%clk 0:01:30.1]} 34... Rc2
{[%clk 0:00:57.9]} 35. Rh6 {[%clk 0:01:28.9]} 35... Rxc4 {[%clk 0:00:21.7]} 36.
Nh4 {[%clk 0:01:28.1]} 36... e3 {[%clk 0:00:22.3]} 37. Rxg6+ {[%clk 0:01:25.6]}
37... Kf7 {[%clk 0:00:21.9]} 38. Rf6+ {[%clk 0:01:25.7]} 38... Ke7 {[%clk
0:00:22.3]} 39. Re6+ {[%clk 0:01:20.8]} 39... Kd7 {[%clk 0:00:20.7]} 40. Rxe3
{[%clk 0:01:20.7]} 40... Nxf4 {[%clk 0:00:20.4]} 41. Nxf5 {[%clk 0:01:16.5]}
41... Ng6 {[%clk 0:00:20.4]} 42. Re6 {[%clk 0:01:09.2]} 42... Ne5 {[%clk
0:00:20.4]} 43. Re7+ {[%clk 0:01:02]} 43... Kd8 {[%clk 0:00:20.4]} 44. Rg7
{[%clk 0:00:56.5]} 44... Rg4+ {[%clk 0:00:19]} 45. Kf2 {[%clk 0:00:54.6]} 45...
Rf4+ {[%clk 0:00:18.5]} 46. Ke3 {[%clk 0:00:54.8]} 46... Rxf5 {[%clk 0:00:18.9]}
47. Rg8+ {[%clk 0:00:54.5]} 47... Kd7 {[%clk 0:00:19]} 48. g6 {[%clk 0:00:55.1]}
48... Rg5 {[%clk 0:00:18.1]} 49. Rg7+ {[%clk 0:00:53]} 49... Kd8 {[%clk
0:00:17.3]} 50. Rg8+ {[%clk 0:00:53.2]} 50... Ke7 {[%clk 0:00:11.4]} 51. Rg7+
{[%clk 0:00:53.6]} 51... Kf6 {[%clk 0:00:11.8]} 52. Rxc7 {[%clk 0:00:52.9]}
52... Kxg6 {[%clk 0:00:11.9]} 53. Re7 {[%clk 0:00:45.7]} 53... Kf5 {[%clk
0:00:10.3]} 54. Re6 {[%clk 0:00:42.6]} 54... Rg3+ {[%clk 0:00:10.1]} 55. Ke2
{[%clk 0:00:41.6]} 55... Nc4 {[%clk 0:00:09.1]} 56. Kd1 {[%clk 0:00:38]} 56...
Rd3+ {[%clk 0:00:08.6]} 57. Kc2 {[%clk 0:00:37.3]} 57... Rxd5 {[%clk 0:00:09.5]}
58. Re8 {[%clk 0:00:36.6]} 58... Ne5 {[%clk 0:00:09.3]} 59. Rd8 {[%clk
0:00:35.3]} 59... Rc5+ {[%clk 0:00:09.3]} 60. Kb3 {[%clk 0:00:34.7]} 60... d5
{[%clk 0:00:09.4]} 61. Kb4 {[%clk 0:00:34.4]} 61... Ke4 {[%clk 0:00:09]} 62. Re8
{[%clk 0:00:33.2]} 62... Kd4 {[%clk 0:00:09.1]} 63. Rd8 {[%clk 0:00:30.6]} 63...
Nd3+ {[%clk 0:00:09.2]} 64. Kb3 {[%clk 0:00:29.4]} 64... Rxb5+ {[%clk
0:00:09.4]} 65. Kc2 {[%clk 0:00:29.9]} 65... Rc5+ {[%clk 0:00:09.9]} 66. Kd2
{[%clk 0:00:29.9]} 66... b5 {[%clk 0:00:10.3]} 67. Rb8 {[%clk 0:00:29.9]} 67...
b4 {[%clk 0:00:10.3]} 68. Rb7 {[%clk 0:00:26.9]} 68... Rc4 {[%clk 0:00:10.4]}
69. Rb8 {[%clk 0:00:22.1]} 69... Nc5 {[%clk 0:00:10.8]} 0-1

[Event "Late-Titled-Tuesday-Blitz-February-13-2024"]
[Site "Chess.com"]
[Date "2024.02.13"]
[Round "1"]
[White "Malev212"]
[Black "AndresDelgado77"]
[Result "1-0"]
[WhiteElo "2673"]
[BlackElo "2329"]
[TimeControl "180+1"]
[EndTime "14:08:23 PST"]
[Termination "Malev212 won on time"]

1. e4 {[%clk 0:03:00.9]} 1... e6 {[%clk 0:02:59.5]} 2. d4 {[%clk 0:02:59.1]}
2... d5 {[%clk 0:02:59.8]} 3. Nc3 {[%clk 0:02:58.9]} 3... Nf6 {[%clk 0:02:59.9]}
4. Bg5 {[%clk 0:02:56.8]} 4... Bb4 {[%clk 0:02:59]} 5. e5 {[%clk 0:02:55.5]}
5... h6 {[%clk 0:02:59.6]} 6. Bc1 {[%clk 0:02:52.8]} 6... Ne4 {[%clk 0:02:57]}
7. Qg4 {[%clk 0:02:47]} 7... Kf8 {[%clk 0:02:56]} 8. Ne2 {[%clk 0:02:45.5]} 8...
c5 {[%clk 0:02:55.2]} 9. a3 {[%clk 0:02:42.5]} 9... Bxc3+ {[%clk 0:02:50.7]} 10.
bxc3 {[%clk 0:02:33]} 10... Qa5 {[%clk 0:02:49.6]} 11. f3 {[%clk 0:02:25.5]}
11... Nxc3 {[%clk 0:02:26.3]} 12. Bd2 {[%clk 0:02:23]} 12... cxd4 {[%clk
0:02:26.3]} 13. Qxd4 {[%clk 0:02:01.8]} 13... Nxe2 {[%clk 0:02:23.2]} 14. Bxe2
{[%clk 0:01:58.6]} 14... Nc6 {[%clk 0:02:15]} 15. Qf2 {[%clk 0:01:26.9]} 15...
Qa4 {[%clk 0:01:46.2]} 16. c4 {[%clk 0:01:10.7]} 16... dxc4 {[%clk 0:01:30.6]}
17. O-O {[%clk 0:01:05.7]} 17... b6 {[%clk 0:01:27.4]} 18. f4 {[%clk 0:00:56]}
18... Qc2 {[%clk 0:01:02.9]} 19. Rfd1 {[%clk 0:00:43.1]} 19... Bb7 {[%clk
0:00:48.1]} 20. Rac1 {[%clk 0:00:41.2]} 20... Qg6 {[%clk 0:00:44.9]} 21. Bf3
{[%clk 0:00:38.5]} 21... Kg8 {[%clk 0:00:35]} 22. Rxc4 {[%clk 0:00:36.3]} 22...
Rc8 {[%clk 0:00:32.5]} 23. Rdc1 {[%clk 0:00:27]} 23... b5 {[%clk 0:00:31.3]} 24.
Be4 {[%clk 0:00:19.6]} 24... f5 {[%clk 0:00:28.7]} 25. exf6 {[%clk 0:00:18.6]}
25... Qxf6 {[%clk 0:00:29.1]} 26. Rc5 {[%clk 0:00:18.1]} 26... e5 {[%clk
0:00:27.6]} 27. Rxb5 {[%clk 0:00:16.5]} 27... Ba8 {[%clk 0:00:24.4]} 28. fxe5
{[%clk 0:00:16.5]} 28... Qxf2+ {[%clk 0:00:21.3]} 29. Kxf2 {[%clk 0:00:17.4]}
29... Kf7 {[%clk 0:00:20.5]} 30. Rbc5 {[%clk 0:00:15.7]} 30... Ne7 {[%clk
0:00:18.8]} 31. Bb1 {[%clk 0:00:11.9]} 31... Rxc5 {[%clk 0:00:18.1]} 32. Rxc5
{[%clk 0:00:10.9]} 32... Rc8 {[%clk 0:00:18.1]} 33. Ba2+ {[%clk 0:00:10.8]}
33... Ke8 {[%clk 0:00:16.7]} 34. Be3 {[%clk 0:00:10.5]} 34... Rxc5 {[%clk
0:00:15]} 35. Bxc5 {[%clk 0:00:11.4]} 35... Nc6 {[%clk 0:00:14.1]} 36. Bd6
{[%clk 0:00:09.9]} 36... Nd4 {[%clk 0:00:13]} 37. g4 {[%clk 0:00:08.3]} 37...
Kd7 {[%clk 0:00:12.7]} 38. Ke3 {[%clk 0:00:08.2]} 38... Ne6 {[%clk 0:00:12.6]}
39. h4 {[%clk 0:00:06.9]} 39... Bc6 {[%clk 0:00:11.9]} 40. Bc4 {[%clk
0:00:06.5]} 40... Bg2 {[%clk 0:00:09.8]} 41. Bd3 {[%clk 0:00:06.1]} 41... Bd5
{[%clk 0:00:08.6]} 42. Bf5 {[%clk 0:00:06.1]} 42... Kc6 {[%clk 0:00:09]} 43. Be7
{[%clk 0:00:03.9]} 43... a5 {[%clk 0:00:06.9]} 44. h5 {[%clk 0:00:03.9]} 44...
a4 {[%clk 0:00:06.4]} 45. Bxe6 {[%clk 0:00:03.3]} 45... Bxe6 {[%clk 0:00:06.4]}
46. Kf4 {[%clk 0:00:04]} 46... Kd7 {[%clk 0:00:06]} 47. Bf8 {[%clk 0:00:04.2]}
47... Ke8 {[%clk 0:00:04.4]} 48. Bxg7 {[%clk 0:00:04.3]} 48... Kf7 {[%clk
0:00:05.1]} 49. Bxh6 {[%clk 0:00:05]} 49... Bd7 {[%clk 0:00:04.1]} 50. Bg5
{[%clk 0:00:05.5]} 50... Be6 {[%clk 0:00:03.9]} 51. Bf6 {[%clk 0:00:06]} 51...
Bd7 {[%clk 0:00:03.7]} 52. g5 {[%clk 0:00:06.3]} 52... Be6 {[%clk 0:00:03.4]}
53. g6+ {[%clk 0:00:07.2]} 53... Kg8 {[%clk 0:00:03.5]} 54. h6 {[%clk
0:00:07.5]} 54... Kf8 {[%clk 0:00:03.1]} 55. h7 {[%clk 0:00:07.6]} 55... Ke8
{[%clk 0:00:03.3]} 56. h8=Q+ {[%clk 0:00:07.7]} 56... Kd7 {[%clk 0:00:04.2]} 57.
Qf8 {[%clk 0:00:07.5]} 57... Bd5 {[%clk 0:00:04]} 58. Qd6+ {[%clk 0:00:08.4]}
58... Kc8 {[%clk 0:00:03.4]} 59. Qxd5 {[%clk 0:00:08.5]} 1-0